fUSD/lending_fUSD_20240712
["ID","MTS","AMOUNT","RATE_DAILY","PERIOD"]
[331874194,1720807835308,-500.0,0.00013908,2]
[331874195,1720807835317,-500.0,0.00013908,2]
[331874196,1720807835327,-537.99,0.00013908,2]
[331874197,1720807835337,-376.93,0.00013908,2]
[331874198,1720807835349,-500.0,0.00013908,2]
[331874199,1720807835359,-500.0,0.00013908,2]
[331874200,1720807835369,-325.34,0.00013908,2]
[331874201,1720807835379,-365.13098293,0.00013908,2]
[331874202,1720807835389,-92.71482194,0.00013908,2]
[331874203,1720807835400,-407.28517806,0.00013908,2]
[331874204,1720807835409,-46.14427014,0.00013908,2]
[331874205,1720807835888,-327.85685687,0.00013908,2]
[331874206,1720807835899,-125.99887299,0.00013908,2]
[331874207,1720807835908,-215.48201078,0.00013908,2]
[331874208,1720807835919,-284.51798922,0.00013908,2]
[331874209,1720807835928,-59.01810891,0.00013908,2]
[331874210,1720807835939,-298.3,0.00013908,2]
[331874211,1720807835950,-142.68189109,0.00013908,2]
[331874212,1720807835959,-500.0,0.00013918,2]
[331874213,1720807835968,-500.0,0.00013918,2]
[331874214,1720807835976,-560.84116227,0.00013918,2]
[331874215,1720807835986,-1270.67,0.00013918,2]
[331874216,1720807835995,-726.95049811,0.00013918,2]
[331874217,1720807836006,-307.33950189,0.00013918,2]
[331874218,1720807836015,-500.0,0.00013918,2]
[331874219,1720807836024,-500.0,0.00013918,2]
[331874220,1720807836033,-558.35299106,0.00013918,2]
[331874221,1720807836045,-555.90330277,0.00013918,2]
[331874222,1720807836056,-204.21370617,0.00013918,2]
[331874223,1720807836066,-561.09,0.00013918,2]
[331874224,1720807836076,-500.0,0.00013918,2]
[331874225,1720807836085,-500.0,0.00013918,2]
[331874226,1720807836094,-488.46274565,0.00013918,2]
[331874227,1720807836110,-11.53725435,0.00013918,2]
[331874228,1720807836119,-500.0,0.00013918,2]
[331874229,1720807836128,-361.14180277,0.00013918,2]
[331874233,1720807838156,-614.60712979,0.00013598,2]
[331874234,1720807838216,-3157.62157021,0.00013598,2]
[331874235,1720807838227,-138.85819723,0.00013918,2]
[331874236,1720807838237,-500.0,0.00013918,2]
[331874237,1720807838248,-500.0,0.00013918,2]
[331874238,1720807838257,-500.0,0.00013918,2]
[331874239,1720807838266,-500.0,0.00013962,2]
[331874240,1720807838275,-896.13,0.00013963,2]
[331874241,1720807838285,-81.39023256,0.00013963,2]
[331874242,1720807838302,-391.43595763,0.00013963,2]
[331874243,1720807838311,-500.0,0.00013963,2]
[331874244,1720807838321,-500.0,0.00013963,2]
[331874245,1720807838330,-220.92,0.00013963,2]
[331874246,1720807838339,-481.22,0.00013963,2]
[331874247,1720807838348,-633.95789678,0.00013963,2]
[331874248,1720807838357,-505.98,0.00013963,2]
[331874249,1720807838366,-500.0,0.00013963,2]
[331874250,1720807838376,-159.06,0.00013963,2]
[331874251,1720807838386,-2654.91902696,0.0001397,3]
[331874252,1720807838397,-1548.71335424,0.0001397,3]
[331874253,1720807838427,-820.5999,0.0001397,3]
[331874254,1720807838442,-2820.32,0.0001397,3]
[331874453,1720807840428,-476.13535636,0.00013899,2]
[331874455,1720807840439,-28691.58364363,0.0001397,3]
[331874463,1720807840563,-1461.35502867,0.0001397,3]
[331874745,1720807843292,-20728.0977604,0.0001397,3]
[331875033,1720807846378,-3219.0,0.0001397,3]
[331875036,1720807846389,-1549.225,0.0001397,3]
[331875038,1720807846400,-335.45,0.0001397,3]
[331875040,1720807846413,-1470.7035555,0.0001397,3]
[331875042,1720807846424,-1014.81,0.0001397,3]
[331875044,1720807846435,-5191.19038756,0.0001397,3]
[331875047,1720807846451,-11651.21138074,0.0001397,3]
[331875049,1720807846462,-5083.8,0.0001397,3]
[331875051,1720807846478,-196334.4981703,0.0001397,3]
[331875052,1720807846488,-2000.0,0.00013973,3]
[331875053,1720807846497,-500.0,0.00013973,2]
[331875054,1720807846506,-500.0,0.00013973,2]
[331875055,1720807846515,-1270.67,0.00013973,2]
[331875056,1720807846524,-1034.29,0.00013973,2]
[331875057,1720807846534,-500.0,0.00013973,2]
[331875058,1720807846543,-500.0,0.00013973,2]
[331875059,1720807846553,-1318.47,0.00013973,2]
[331875060,1720807846562,-561.09,0.00013973,2]
[331875061,1720807846572,-500.0,0.00013973,2]
[331875062,1720807846583,-500.0,0.00013973,2]
[331875063,1720807846592,-500.0,0.00013973,2]
[331875064,1720807846602,-500.0,0.00013973,2]
[331875065,1720807846611,-488.73318525,0.00013973,2]
[331875066,1720807846620,-500.0,0.00013973,2]
[331875067,1720807846629,-500.0,0.00013973,2]
[331875068,1720807846640,-500.0,0.00013973,2]
[331875069,1720807846649,-110958.70583149,0.0001398,3]
[331875070,1720807846661,-2207.1800953,0.0001398,3]
[331875071,1720807846672,-724.52419805,0.0001398,3]
[331875072,1720807846683,-8328.27221717,0.0001398,3]
[331875073,1720807846695,-2547.92756546,0.0001398,3]
[331875074,1720807846710,-1741.6135,0.0001398,3]
[331875075,1720807846721,-424.35038744,0.0001398,3]
[331875122,1720808001607,3000.0,0.00025559,120]
[331875123,1720808007469,171.67733475,5e-05,2]
[331875124,1720808013694,1250.0,0.00013,2]
[331875125,1720808062974,113.71146281,0.00013,2]
[331875126,1720808062996,41.41989164,0.00013,2]
[331875127,1720808113980,290.66575246,0.00013,2]
[331875128,1720808124181,155.0,0.00012314,2]
[331875129,1720808125723,158.57023765,0.00013,2]
[331875130,1720808152685,680.85773798,0.00012302,2]
[331875132,1720808246194,960.62707526,0.00012302,2]
[331875133,1720808288903,411.02446308,0.00012302,2]
[331875134,1720808291476,250.0,0.00012932,2]
[331875135,1720808296996,175.67,0.00012528,2]
[331875136,1720808324675,356.0,0.00027,120]
[331875137,1720808337241,490.19,0.00011033,2]
[331875138,1720808347192,960.06491194,0.00012528,2]
[331875139,1720808353450,155.35660634,0.00012314,2]
[331875140,1720808363885,328.0,0.00012942,2]
[331875141,1720808363984,476.13535636,0.00012314,2]
[331875142,1720808366685,192.04782753,0.00012314,2]
[331875143,1720808382585,237.89260728,0.00012314,2]
[331875144,1720808392427,155.0,0.00012314,2]
[331875145,1720808449141,443.85598899,0.00012314,2]
[331875146,1720808489092,415.70505063,0.00012314,2]
[331875147,1720808504194,638.85101354,0.00012302,2]
[331875148,1720808518909,301.97305581,0.00012314,2]
[331875149,1720808576392,400.0,0.00012314,2]
[331875150,1720808580059,382.12258582,0.00012314,2]
[331875151,1720808730053,841.35993278,0.000118,2]
[331875152,1720808735297,287.63899926,0.00012314,2]
[331875153,1720808782300,169.97090565,0.00012314,2]
[331875154,1720808782325,7529.38383785,0.00012314,2]
[331875155,1720808783504,227.32181018,0.00012314,2]
[331875157,1720808813944,2243.29435197,0.0001259,2]
[331875158,1720808813967,1098.26850658,0.0001259,2]
[331875162,1720808832161,225.73,0.00012907,2]
[331875163,1720808843944,411.97119588,0.00012314,2]
[331875164,1720808851036,1287.93227317,0.00012302,2]
[331875165,1720808860143,552.79358978,0.00012314,2]
[331875166,1720808872116,6423.30443459,0.00012314,2]
[331875167,1720808872140,10000.0,0.00012314,2]
[331875168,1720808872163,3913.85667414,0.00012314,2]
[331875169,1720808873944,411.97119588,0.00012314,2]
[331875170,1720808875320,5674.17212998,0.00012314,2]
[331875171,1720808875343,1342.44120952,0.00012314,2]
[331875173,1720808884250,155.13983641,0.00012314,2]
[331875175,1720808901008,250.0,0.00012896,2]
[331875176,1720808913794,1437.54350997,0.00012,2]
[331875177,1720808916097,465.68,0.00010985,2]
[331875178,1720808919563,310.0,0.00012314,2]
[331875188,1720809032389,-8462.32956516,0.00012314,2]
[331875189,1720809032399,-155.14051249,0.00012314,2]
[331875190,1720809032408,-1633.0,0.00013127,2]
[331875191,1720809032419,-155.0,0.00013128,2]
[331875192,1720809032430,-308.57978136,0.00013128,2]
[331875193,1720809032439,-465.68,0.00013249,2]
[331875194,1720809032449,-156.25259404,0.00013472,2]
[331875195,1720809032459,-1364.7591,0.00013474,2]
[331875196,1720809032469,-155.43704552,0.00013516,2]
[331875197,1720809032479,-138.82140143,0.00013516,2]
[331875202,1720809033194,-16.17859857,0.00013516,2]
[331875203,1720809033203,-155.0,0.00013516,2]
[331875204,1720809033212,-419.40981592,0.00013543,2]
[331875205,1720809033227,-251.63069161,0.00013543,2]
[331875206,1720809033236,-150.0,0.00013698,2]
[331875207,1720809033246,-219.99,0.00013699,2]
[331875208,1720809033255,-500.0,0.00013699,2]
[331875209,1720809033264,-500.0,0.00013699,2]
[331875210,1720809033273,-500.0,0.00013699,2]
[331875211,1720809033282,-500.0,0.00013699,2]
[331875212,1720809033290,-262.40330839,0.00013699,2]
[331875213,1720809033301,-237.59669161,0.00013699,2]
[331875214,1720809033311,-59.45116746,0.00013699,2]
[331875215,1720809033322,-440.54883254,0.00013699,2]
[331875216,1720809033331,-405.61712679,0.00013699,2]
[331875217,1720809033341,-500.0,0.00013699,2]
[331875218,1720809033349,-500.0,0.00013699,2]
[331875219,1720809033358,-66.95404067,0.00013699,2]
[331875220,1720809033378,-433.04595933,0.00013699,2]
[331875221,1720809033388,-449.35668836,0.00013699,2]
[331875222,1720809033400,-50.64331164,0.00013699,2]
[331875223,1720809033409,-500.0,0.00013699,2]
[331875224,1720809033418,-500.0,0.00013699,2]
[331875225,1720809033428,-500.0,0.00013699,2]
[331875226,1720809033437,-500.0,0.00013699,2]
[331875227,1720809033446,-500.0,0.00013699,2]
[331875228,1720809033455,-500.0,0.00013699,2]
[331875229,1720809033464,-500.0,0.00013699,2]
[331875230,1720809033473,-500.0,0.00013699,2]
[331875231,1720809033483,-500.0,0.00013699,2]
[331875232,1720809033492,-500.0,0.00013699,2]
[331875233,1720809033502,-629.37589043,0.00013699,2]
[331875234,1720809033511,-500.0,0.00013699,2]
[331875235,1720809033520,-347.91640768,0.00013699,2]
[331875236,1720809033529,-500.0,0.00013699,2]
[331875237,1720809033539,-500.0,0.00013699,2]
[331875238,1720809033548,-500.0,0.00013699,2]
[331875239,1720809033559,-500.0,0.00013699,2]
[331875240,1720809033568,-500.0,0.00013699,2]
[331875241,1720809033577,-500.0,0.00013699,2]
[331875242,1720809033586,-500.0,0.00013699,2]
[331875243,1720809033595,-500.0,0.00013699,2]
[331875244,1720809033604,-500.0,0.00013699,2]
[331875245,1720809033613,-500.0,0.00013699,2]
[331875246,1720809033622,-500.0,0.00013699,2]
[331875247,1720809033631,-500.0,0.00013699,2]
[331875248,1720809033640,-500.0,0.00013699,2]
[331875249,1720809033650,-500.0,0.00013699,2]
[331875250,1720809033659,-500.0,0.00013699,2]
[331875251,1720809033668,-509.27,0.00013699,2]
[331875252,1720809033677,-500.0,0.00013699,2]
[331875253,1720809033686,-500.0,0.00013699,2]
[331875254,1720809033695,-500.0,0.00013699,2]
[331875255,1720809033704,-500.0,0.00013699,2]
[331875256,1720809033713,-500.0,0.00013699,2]
[331875257,1720809033722,-500.0,0.00013699,2]
[331875258,1720809033732,-500.0,0.00013699,2]
[331875259,1720809033741,-500.0,0.00013699,2]
[331875260,1720809033750,-500.0,0.00013699,2]
[331875261,1720809033759,-500.0,0.00013699,2]
[331875262,1720809033768,-500.0,0.00013699,2]
[331875263,1720809033777,-500.0,0.00013699,2]
[331875264,1720809033786,-500.0,0.00013699,2]
[331875265,1720809033795,-500.0,0.00013699,2]
[331875266,1720809033804,-500.0,0.00013699,2]
[331875267,1720809033817,-269.5857796,0.00013699,2]
[331875268,1720809033826,-500.0,0.00013699,2]
[331875269,1720809033835,-500.0,0.00013699,2]
[331875270,1720809033844,-500.0,0.00013699,2]
[331875271,1720809033853,-500.0,0.00013699,2]
[331875272,1720809033863,-500.0,0.00013699,2]
[331875273,1720809033872,-500.0,0.00013699,2]
[331875274,1720809033881,-589.25538336,0.00013699,2]
[331875275,1720809033891,-500.0,0.00013699,2]
[331875276,1720809033900,-3271.13086808,0.00013719,2]
[331875277,1720809033913,-499.99,0.00013736,2]
[331875278,1720809033923,-3509.57653628,0.00013736,2]
[331875279,1720809033931,-517.15253323,0.00013736,2]
[331875280,1720809033941,-500.0,0.00013754,2]
[331875281,1720809033950,-500.0,0.00013754,2]
[331875282,1720809033961,-500.0,0.00013754,2]
[331875283,1720809033971,-500.0,0.00013754,2]
[331875284,1720809033980,-555.68,0.00013754,2]
[331875285,1720809033992,-294.2,0.00013754,2]
[331875286,1720809034002,-500.0,0.00013754,2]
[331875287,1720809034011,-276.05,0.00013754,2]
[331875288,1720809034020,-500.0,0.00013754,2]
[331875289,1720809034030,-500.0,0.00013754,2]
[331875290,1720809034039,-583.5641,0.00013754,2]
[331875291,1720809034048,-1071.49821396,0.00013759,2]
[331875292,1720809034057,-529.07,0.000138,2]
[331875293,1720809034070,-155.0,0.00013802,2]
[331875294,1720809034079,-500.0,0.00013809,2]
[331875295,1720809034090,-319.71,0.00013809,2]
[331875296,1720809034099,-200.37,0.00013809,2]
[331875297,1720809034109,-419.09,0.00013809,2]
[331875298,1720809034118,-500.0,0.00013809,2]
[331875299,1720809034127,-248.96769572,0.00013809,2]
[331875300,1720809034137,-394.93016593,0.00013809,2]
[331875301,1720809034146,-211.06199,0.0001383,2]
[331875302,1720809034155,-152.0044,0.00013833,2]
[331875303,1720809034164,-987.92467,0.00013849,2]
[331875304,1720809034174,-500.0,0.00013861,2]
[331875305,1720809034183,-200.0,0.00013861,2]
[331875306,1720809034194,-500.0,0.00013864,2]
[331875307,1720809034203,-500.0,0.00013864,2]
[331875308,1720809034213,-2738.94923588,0.00013873,2]
[331875309,1720809034222,-2738.94923588,0.00013876,2]
[331875310,1720809034232,-2738.94923588,0.00013879,2]
[331875311,1720809034241,-36828.36370397,0.0001388,2]
[331875312,1720809034251,-998.92770583,0.0001388,2]
[331875313,1720809034260,-2738.94923588,0.00013882,2]
[331875314,1720809034269,-2738.94923588,0.00013885,2]
[331875315,1720809034279,-2738.94923588,0.00013888,2]
[331875316,1720809034288,-2738.94923588,0.00013891,2]
[331875317,1720809034298,-2738.94923588,0.00013894,2]
[331875318,1720809034307,-2738.94923588,0.00013897,2]
[331875319,1720809034318,-462.12662794,0.00013899,2]
[331875320,1720809034327,-1115.1045593,0.000139,2]
[331875321,1720809034337,-422.30602796,0.000139,2]
[331875322,1720809034346,-2738.94923588,0.000139,2]
[331875323,1720809034355,-572.16288722,0.000139,2]
[331875324,1720809034364,-500.0,0.00013918,2]
[331875325,1720809034374,-491.54510247,0.00013918,2]
[331875326,1720809034389,-998.92770577,0.00013942,2]
[331875327,1720809034400,-17922.0,0.0001395,2]
[331875328,1720809034412,-851.09,0.0001396,3]
[331875329,1720809034423,-65186.2737718,0.0001397,3]
[331875330,1720809034434,-2000.0,0.00013973,3]
[331875331,1720809034445,-500.0,0.00013973,2]
[331875332,1720809034456,-1000.0,0.00013973,2]
[331875333,1720809034466,-1000.0,0.00013973,2]
[331875334,1720809034477,-1000.0,0.00013973,2]
[331875335,1720809034488,-1000.0,0.00013973,2]
[331875336,1720809034500,-1000.0,0.00013973,2]
[331875337,1720809034510,-1000.0,0.00013973,2]
[331875338,1720809034521,-1000.0,0.00013973,2]
[331875339,1720809034532,-1000.0,0.00013973,2]
[331875340,1720809034543,-1000.0,0.00013973,2]
[331875341,1720809034554,-1000.0,0.00013973,2]
[331875342,1720809034567,-1000.0,0.00013973,2]
[331875343,1720809034579,-825.58433486,0.00013973,2]
[331875344,1720809034590,-1059.3,0.00013978,2]
[331875345,1720809034602,-150.0,0.00013978,2]
[331875346,1720809034613,-500.0,0.00013979,2]
[331875347,1720809034625,-775.71,0.00013979,2]
[331875348,1720809034635,-500.0,0.00013979,2]
[331875349,1720809034646,-500.0,0.00013979,2]
[331875350,1720809034657,-500.0,0.00013979,2]
[331875351,1720809034667,-500.0,0.00013979,2]
[331875352,1720809034678,-500.0,0.00013979,2]
[331875353,1720809034688,-500.0,0.00013979,2]
[331875354,1720809034701,-500.0,0.00013979,2]
[331875355,1720809034713,-500.0,0.00013979,2]
[331875356,1720809034724,-500.0,0.00013979,2]
[331875357,1720809034735,-500.0,0.00013979,2]
[331875358,1720809034746,-500.0,0.00013979,2]
[331875359,1720809034755,-295.44364083,0.00013979,2]
[331875360,1720809034765,-16296.5684429,0.00013979,3]
[331875361,1720809034775,-155.0,0.0001398,2]
[331875362,1720809034785,-195558.821315,0.0001398,3]
[331875363,1720809034797,-149937.953565,0.0001398,3]
[331875364,1720809034807,-461.84875759,0.00013988,2]
[331875365,1720809034819,-500.0,0.00013988,2]
[331875366,1720809034830,-500.0,0.00013988,2]
[331875367,1720809034841,-500.0,0.00013988,2]
[331875368,1720809034852,-500.0,0.00013988,2]
[331875369,1720809034864,-500.0,0.00013988,2]
[331875370,1720809034875,-500.0,0.00013988,2]
[331875371,1720809034886,-500.0,0.00013988,2]
[331875372,1720809034898,-500.0,0.00013988,2]
[331875373,1720809034913,-500.0,0.00013988,2]
[331875374,1720809034924,-500.0,0.00013988,2]
[331875375,1720809034936,-500.0,0.00013988,2]
[331875376,1720809034947,-500.0,0.00013988,2]
[331875377,1720809034959,-493.21,0.00013988,2]
[331875378,1720809034969,-500.0,0.00013988,2]
[331875379,1720809034980,-500.0,0.00013988,2]
[331875380,1720809034992,-157.28134079,0.00013989,2]
[331875381,1720809035003,-500.0,0.00013989,2]
[331875382,1720809035013,-500.0,0.00013989,2]
[331875383,1720809035024,-500.0,0.00013989,2]
[331875384,1720809035035,-500.0,0.00013989,2]
[331875385,1720809035047,-500.0,0.00013989,2]
[331875386,1720809035059,-592.12,0.00013989,2]
[331875387,1720809035070,-500.0,0.00013989,2]
[331875388,1720809035081,-500.0,0.00013989,2]
[331875389,1720809035091,-500.0,0.00013989,2]
[331875390,1720809035101,-623.5,0.00013989,2]
[331875391,1720809035114,-500.0,0.00013989,2]
[331875392,1720809035124,-500.0,0.00013989,2]
[331875393,1720809035134,-500.0,0.00013989,2]
[331875394,1720809035146,-500.0,0.00013989,2]
[331875395,1720809035157,-500.0,0.00013989,2]
[331875396,1720809035168,-500.0,0.00013989,2]
[331875397,1720809035178,-500.0,0.00013989,2]
[331875398,1720809035188,-342.57447485,0.00013989,2]
[331875399,1720809035198,-500.0,0.00013989,2]
[331875400,1720809035208,-3066.6129348,0.00013989,2]
[331875401,1720809035218,-500.0,0.00013989,2]
[331875402,1720809035229,-500.0,0.00013989,2]
[331875403,1720809035239,-500.0,0.00013989,2]
[331875404,1720809035250,-500.0,0.00013989,2]
[331875405,1720809035260,-642.50825854,0.00013989,2]
[331875406,1720809035270,-500.0,0.00013989,2]
[331875407,1720809035281,-410.94346813,0.00013989,2]
[331875408,1720809035291,-500.0,0.00013989,2]
[331875409,1720809035302,-500.0,0.00013989,2]
[331875410,1720809035313,-630.99409449,0.00013989,2]
[331875411,1720809035323,-566.09589472,0.00013989,2]
[331875412,1720809035334,-500.0,0.00013989,2]
[331875413,1720809035345,-500.0,0.00013989,2]
[331875414,1720809035356,-500.0,0.00013989,2]
[331875415,1720809035366,-500.0,0.00013989,2]
[331875416,1720809035377,-500.0,0.00013989,2]
[331875417,1720809035387,-547.37,0.00013989,2]
[331875418,1720809035398,-454.8173038,0.00013989,2]
[331875419,1720809035408,-973.83,0.00013989,2]
[331875420,1720809035419,-500.0,0.00013989,2]
[331875421,1720809035429,-500.0,0.00013989,2]
[331875422,1720809035439,-500.0,0.00013989,2]
[331875423,1720809035449,-500.0,0.00013989,2]
[331875424,1720809035460,-500.0,0.00013989,2]
[331875425,1720809035470,-505.87902639,0.00013989,2]
[331875426,1720809035481,-523.59991299,0.00013989,2]
[331875427,1720809035492,-500.0,0.00013989,2]
[331875428,1720809035502,-500.0,0.00013989,2]
[331875429,1720809035512,-500.0,0.00013989,2]
[331875430,1720809035522,-3390.8208172,0.00013989,2]
[331875431,1720809035532,-563.52363876,0.00013989,2]
[331875432,1720809035543,-596.01954128,0.00013989,2]
[331875433,1720809035554,-519.12605919,0.00013989,2]
[331875434,1720809035565,-500.0,0.00013989,2]
[331875435,1720809035575,-500.0,0.00013989,2]
[331875436,1720809035586,-595.47799811,0.00013989,2]
[331875437,1720809035596,-500.0,0.00013989,2]
[331875438,1720809035607,-533.24741729,0.00013989,2]
[331875439,1720809035618,-500.0,0.00013989,2]
[331875440,1720809035628,-544.98,0.00013989,2]
[331875441,1720809035638,-500.0,0.00013989,2]
[331875442,1720809035649,-3470.67,0.00013989,2]
[331875443,1720809035659,-500.0,0.00013989,2]
[331875444,1720809035670,-451.99172712,0.00013989,2]
[331875445,1720809035680,-523.12021539,0.00013989,2]
[331875446,1720809035691,-627.92191773,0.00013989,2]
[331875447,1720809035701,-631.48987602,0.00013989,2]
[331875448,1720809035711,-500.0,0.00013989,2]
[331875449,1720809035722,-500.0,0.00013989,2]
[331875450,1720809035733,-500.0,0.00013989,2]
[331875451,1720809035743,-500.0,0.00013989,2]
[331875452,1720809035753,-500.0,0.00013989,2]
[331875453,1720809035764,-500.0,0.00013989,2]
[331875454,1720809035774,-506.99863392,0.00013989,2]
[331875455,1720809035784,-500.0,0.00013989,2]
[331875456,1720809035794,-507.84312428,0.00013989,2]
[331875457,1720809035805,-500.0,0.00013989,2]
[331875458,1720809035816,-500.0,0.00013989,2]
[331875459,1720809035827,-500.0,0.00013989,2]
[331875460,1720809035837,-500.0,0.00013989,2]
[331875461,1720809035848,-500.0,0.00013989,2]
[331875462,1720809035858,-500.0,0.00013989,2]
[331875463,1720809035868,-500.0,0.00013989,2]
[331875464,1720809035879,-500.0,0.00013989,2]
[331875465,1720809035889,-500.0,0.00013989,2]
[331875466,1720809035899,-500.0,0.00013989,2]
[331875467,1720809035914,-500.0,0.00013989,2]
[331875468,1720809035924,-500.0,0.00013989,2]
[331875469,1720809035934,-500.0,0.00013989,2]
[331875470,1720809035945,-500.0,0.00013989,2]
[331875471,1720809035957,-500.0,0.00013989,2]
[331875472,1720809035968,-500.0,0.00013989,2]
[331875473,1720809035979,-500.0,0.00013989,2]
[331875474,1720809035990,-500.0,0.00013989,2]
[331875475,1720809036000,-500.0,0.00013989,2]
[331875476,1720809036011,-500.0,0.00013989,2]
[331875477,1720809036021,-500.0,0.00013989,2]
[331875478,1720809036032,-500.0,0.00013989,2]
[331875479,1720809036043,-500.0,0.00013989,2]
[331875480,1720809036054,-500.0,0.00013989,2]
[331875481,1720809036067,-500.0,0.00013989,2]
[331875482,1720809036077,-500.0,0.00013989,2]
[331875483,1720809036087,-500.0,0.00013989,2]
[331875484,1720809036098,-500.0,0.00013989,2]
[331875485,1720809036108,-500.0,0.00013989,2]
[331875486,1720809036118,-500.0,0.00013989,2]
[331875487,1720809036129,-500.0,0.00013989,2]
[331875488,1720809036139,-500.0,0.00013989,2]
[331875489,1720809036150,-500.0,0.00013989,2]
[331875490,1720809036160,-500.0,0.00013989,2]
[331875491,1720809036171,-500.0,0.00013989,2]
[331875492,1720809036181,-500.0,0.00013989,2]
[331875493,1720809036192,-500.0,0.00013989,2]
[331875494,1720809036203,-500.0,0.00013989,2]
[331875495,1720809036213,-500.0,0.00013989,2]
[331875496,1720809036224,-500.0,0.00013989,2]
[331875497,1720809036235,-500.0,0.00013989,2]
[331875498,1720809036246,-500.0,0.00013989,2]
[331875499,1720809036257,-506.44070119,0.00013989,2]
[331875500,1720809036267,-500.0,0.00013989,2]
[331875501,1720809036278,-130372.547544,0.0001399,3]
[331875502,1720809036288,-45860.45055779,0.0001399,3]
[331875503,1720809036305,-11571.14143,0.0001399,3]
[331875504,1720809036320,-12191.51498028,0.0001399,3]
[331875505,1720809036524,-800.07111468,0.0001399,3]
[331875506,1720809036538,-2377.36767578,0.0001399,3]
[331875507,1720809039178,-368.4034386,0.00013849,2]
[331875512,1720809039346,-887.39062738,0.00013849,2]
[331875513,1720809039357,-495.84101344,0.000139,2]
[331875514,1720809039367,-500.0,0.00013988,2]
[331875515,1720809039377,-500.0,0.00013989,2]
[331875516,1720809039386,-15137.90151129,0.0001399,3]
[331875517,1720809039399,-31379.86762403,0.0001399,3]
[331875518,1720809039410,-384.59479513,0.0001399,3]
[331875519,1720809039421,-3804.36369245,0.0001399,3]
[331875520,1720809039433,-347.93,0.0001399,3]
[331875521,1720809039444,-781.88578096,0.0001399,3]
[331875522,1720809039456,-769.22313,0.0001399,3]
[331875523,1720809039470,-780.33589964,0.0001399,3]
[331875524,1720809039524,-28355.42344949,0.0001399,3]
[331875525,1720809039535,-734.70866164,0.0001399,3]
[331875526,1720809039547,-1015.57365664,0.0001399,3]
[331875601,1720809040514,-411.10322206,0.0001399,3]
[331875626,1720809040710,-3532.00000001,0.0001399,3]
[331875630,1720809040740,-10137.04032733,0.0001399,3]
[331875632,1720809040754,-37136.77872682,0.0001399,3]
[331875634,1720809040765,-517.3092,0.0001399,3]
[331875637,1720809040784,-82757.37687966,0.0001399,3]
[331875690,1720809041487,-30511.65246632,0.0001399,3]
[331875692,1720809041496,-828.0,0.0001399,2]
[331875694,1720809041506,-32476.5533624,0.0001399,2]
[331875696,1720809041515,-2655.1227143,0.0001399,2]
[331875698,1720809041526,-2243.6324938,0.0001399,2]
[331875700,1720809041535,-1477.01805444,0.0001399,2]
[331875703,1720809041551,-1395.85268226,0.0001399,2]
[331875705,1720809041560,-2354.9206561,0.0001399,2]
[331875707,1720809041571,-1836.9705755,0.0001399,2]
[331875709,1720809041580,-1319.0204949,0.0001399,2]
[331875711,1720809041589,-85678.8306086,0.0001399,3]
[331875713,1720809041598,-1050.2027834,0.00013994,2]
[331875715,1720809041607,-331.20522403,0.00013994,2]
[331875717,1720809041616,-229.2919751,0.00013998,2]
[331875719,1720809041626,-459.6227536,0.00013998,2]
[331875721,1720809041635,-198.10920115,0.00013999,2]
[331875723,1720809041646,-551.85777127,0.00013999,2]
[331875725,1720809041655,-18822.18053833,0.00014,2]